Cogmind - Beta 13 @@@ ROGUE MODE // 2024.06.08 @ 22:12:22 Player: lyrabold Result: Destroyed by G-47 Trooper with Particle Gun Performance ------------- Evolutions (2) 1000 Regions Visited (5) 1000 Robots Destroyed (123) 615 Value Destroyed (3892) 3892 Prototype IDs (22) 440 Alien Tech Used (0) 0 Bonus (460) 460 TOTAL SCORE: 7407 Bonus ------- High Alert Combat Kills 313 Follower Combat Kills 131 Entered Garrisons 200 Friendly Fire -184 Cogmind --------- Core Integrity 0/550 Matter 300/300 Energy 148/160 System Corruption 11% Temperature Cool (13) Movement Treading (160) Location -8/Materials Parts ------- > --- POWER (1) -------- Light Nuclear Core > --- PROPULSION (4) --- Medium Treads (fused) Medium Treads Medium Treads Medium Treads > --- UTILITY (4) ------ Huge Storage Unit Improved Sensor Array Improved Signal Interpreter Improved Medium Armor Plating > --- WEAPON (2) ------- Ion Cannon Heavy Flail > --- INVENTORY (25) --- Meta Core Light Treads Light Treads Aerolev Unit Aerolev Unit Aerolev Unit Aerolev Unit Aerolev Unit Improved Heat Sink Medium Storage Unit Advanced Visual Processing Unit Improved Utility Shielding Improved Light Armor Plating Hacking Suite Hacking Suite System Shield Authchip [Propulsion] Minigun Minigun Minigun Minigun Subdweller Shrapnel Launcher Improved Datajack Multitool Peak State ------------ > --- POWER ------------ Light Nuclear Core > --- PROPULSION ------- Medium Treads Medium Treads Medium Treads Medium Treads > --- UTILITY ---------- Huge Storage Unit Core Analyzer Kinecellerator Improved Medium Armor Plating > --- WEAPON ----------- Ion Cannon Minigun > --- INVENTORY -------- Meta Core Light Treads Light Treads Aerolev Unit Aerolev Unit Aerolev Unit Aerolev Unit Aerolev Unit Medium Storage Unit Advanced Visual Processing Unit Improved Sensor Array Improved Signal Interpreter Improved Utility Shielding Improved Light Armor Plating Hacking Suite Hacking Suite System Shield Authchip [Propulsion] Minigun Minigun Minigun Subdweller Shrapnel Launcher Improved Datajack Multitool Heavy Flail [Rating: 46] Favorites ----------- Power Ion Engine Engine Ion Engine Power Core Light Nuclear Core Propulsion Light Treads Treads Light Treads Leg Aluminum Leg Hover Unit Aerolev Unit Flight Unit Improved Flight Unit Utility Huge Storage Unit Device V3-11A's Pendant Storage Huge Storage Unit Processor Core Analyzer Hackware Authchip [R/Combat] Protection Improved Medium Armor Plating Weapon Subdweller Beam Cannon Energy Gun Heavy Particle Gun Energy Cannon Subdweller Beam Cannon Ballistic Gun Minigun Ballistic Cannon Light Cannon Launcher Mini Grenade Launcher Special Weapon Mining Laser Impact Weapon Heavy Flail Build | -11 -10 -10 -8 -8 -8 ------- Run | Yrd Mat Sub Mat Gar Mat Slots Evolved 4 | . . . 4 . . Power . | . . . . . . Propulsion 2 | . . . 2 . . Utility 2 | . . . 2 . . Weapon . | . . . . . . Parts Attached 166 | 7 10 24 60 21 44 Power 9 | 1 1 1 5 . 1 Engine 7 | 1 1 1 4 . . Core 2 | . . . 1 . 1 Reactor . | . . . . . . Propulsion 38 | 2 . 2 19 5 10 Treads 33 | 2 . 2 15 5 9 Leg 1 | . . . 1 . . Wheel . | . . . . . . Hover 2 | . . . 1 . 1 Flight 2 | . . . 2 . . Utility 43 | 2 2 7 11 4 17 Device 24 | 1 . 6 4 2 11 Storage 7 | 1 2 1 2 . 1 Processor 2 | . . . 1 . 1 Hackware 1 | . . . . 1 . Protection 9 | . . . 4 1 4 Artifact . | . . . . . . Weapon 76 | 2 7 14 25 12 16 Energy Gun 7 | 1 . 2 4 . . Energy Cannon 25 | . . 2 10 6 7 Ballistic Gun 12 | 1 . 4 6 . 1 Ballistic Cannon 7 | . 4 3 . . . Launcher 11 | . . . 3 5 3 Special Weapon 9 | . 3 3 2 . 1 Impact Weapon 5 | . . . . 1 4 Slashing Weapon . | . . . . . . Piercing Weapon . | . . . . . . Special Melee Weapon . | . . . . . . Unidentified Prototypes 6 | . . 1 4 . 1 Corrupted Parts 1 | . . 1 . . . System Corruption 4 | . . 4 . . . Parts Lost 23 | . . 2 12 5 4 Power 1 | . . . 1 . . Propulsion 10 | . . 1 4 3 2 Utility 7 | . . . 5 1 1 Weapon 5 | . . 1 2 1 1 Highest Loss Streak 3 | . . 2 3 2 2 To Critical Strikes . | . . . . . . Average Slot Usage (%) 96 | . 100 95 95 98 98 Engine 9 | . 14 13 5 9 4 Core 1 | . . . 3 . 4 Treads 31 | . 28 27 34 34 35 Device 12 | . 14 13 12 8 8 Storage 11 | . 14 14 9 9 9 Processor 2 | . . . 1 9 9 Protection 5 | . . . 10 9 8 Energy Gun 1 | . 3 . 4 . . Energy Cannon 9 | . . 14 6 13 8 Ballistic Gun 6 | . 14 6 7 . 3 Ballistic Cannon 1 | . 8 2 . . . Naked Turns . | . . . . . . Heaviest Build 111 | 12 29 42 111 110 107 Greatest Support 112 | 40 40 40 86 86 112 Greatest Overweight (x) 1 | . . 1 1 1 1 Average Overweight (x) . | . . . . 1 . Largest Inventory Capacity 25 | 8 15 15 25 25 25 Average Capacity 19 | 7 10 14 23 25 25 Most Carried 25 | 4 10 15 25 25 25 Average Carried 18 | 2 8 14 22 24 24 Final Capacity 25 | 8 15 15 25 25 25 Final Carried 25 | 4 10 15 25 24 24 Class Distribution -------------------- 79% | Mutant 18% | Scavenger-Mutant Dominant Class ---------------- Mutant | -10/Materials Mutant | -10/Subcaves Mutant | -8/Materials Mutant | -8/Garrison Scavenger-Mutant | -8/Materials Resources | -11 -10 -10 -8 -8 -8 ----------- Run | Yrd Mat Sub Mat Gar Mat Matter Collected 3857 | 333 302 350 1176 704 992 Remotely . | . . . . . . Salvage Created 5011 | 191 423 255 2472 385 1285 Parts 246 | 11 18 21 132 10 54 Haulers Intercepted 10 | . 2 . 5 . 3 Recyclers Shooed 11 | 1 5 . 4 . 1 Parts Field Recycled . | . . . . . . Retrieved Matter . | . . . . . . Parts Self-Destructed 8 | . . 8 . . . Prevented . | . . . . . . Kills | -11 -10 -10 -8 -8 -8 ------- Run | Yrd Mat Sub Mat Gar Mat Combat Hostiles Destroyed 113 | . 6 8 38 41 20 Guns 31 | . 2 3 20 . 6 Cannons 44 | . 4 5 10 15 10 AOE 37 | . . . 8 25 4 Classes Destroyed 22 | 3 5 4 7 2 1 Worker 7 | 1 1 . 4 . 1 Builder 4 | . . . 1 . 3 Tunneler 5 | 4 . . . . 1 Hauler 10 | . 2 . 5 . 3 Recycler 9 | 1 1 . 4 . 3 Mechanic 2 | . 1 . . . 1 Operator 4 | . 1 . 2 . 1 Watcher 7 | . 1 . 3 . 3 Swarmer 9 | . . 4 5 . . Grunt 37 | . 6 . 16 . 15 Brawler 2 | . . . 1 . 1 Duelist 1 | . . . 1 . . Protector 1 | . . . . . 1 Sentry 10 | . . . 7 1 2 Specialist 6 | . . . 6 . . Hunter 2 | . . . 1 . 1 Programmer 2 | . . . . 2 . Heavy 1 | . . . 1 . . Artisan 1 | . . 1 . . . Cobbler 1 | . . 1 . . . Subdweller 4 | . . 4 . . . Assembled 38 | . . . . 38 . Best Kill Streak 17 | 2 4 4 6 17 7 Combat Bots Only 17 | . 2 4 4 17 5 Max Kills in Single Turn 3 | 1 1 1 3 3 2 Gunslinging 1 | . . . 1 . . Exploded 3 | . . . 3 3 1 Melee . | . . . . . . Uniques/NPCs Destroyed . | . . . . . . Combat | -11 -10 -10 -8 -8 -8 -------- Run | Yrd Mat Sub Mat Gar Mat Hostile Shots Fired 493 | . 26 64 214 78 111 Missed 140 | . 14 15 59 25 27 Damage Taken 5628 | . 169 694 2466 1010 1289 Core 738 | . 48 124 321 89 156 Absorbed by Shields 152 | . . . 152 . . Regen/Repaired (Parts) 77 | . 77 . . . . Core Remaining (%) 65 | 100 . 31 . . . Volleys Fired 473 | 21 56 58 153 100 85 Largest 2 | 2 2 2 2 2 2 Hottest 143 | 60 100 100 143 136 136 Shots Fired 763 | 37 98 75 276 128 149 Gun 368 | 37 67 21 189 . 54 Cannon 324 | . 21 45 77 96 85 Launcher 47 | . . . 6 32 9 Special 24 | . 10 9 4 . 1 Kinetic 321 | 21 67 37 128 5 63 Thermal 410 | 16 31 35 146 96 86 Explosive 29 | . . . 2 27 . Electromagnetic 3 | . . 3 . . . Robot Hit Streak 15 | 5 14 8 15 12 12 Robot Miss Streak 3 | 2 2 3 3 3 2 Penetration Max . | . . . . . . Secondary Targets 4 | . . . 4 . . Max Gunslinging Chain 1 | . . . 1 . . Shots Hit Robots 422 | 23 64 27 172 33 103 Core Hits 250 | 7 24 16 86 62 55 Critical Kills 1 | . . . . 1 . Critical Parts Destroyed . | . . . . . . Critical Strikes 3 | . . 1 1 1 . Burn 1 | . . . 1 . . Meltdown 1 | . . . . 1 . Destroy 1 | . . 1 . . . Melee Attacks 29 | . . . . 4 25 Impact 29 | . . . . 4 25 Slashing . | . . . . . . Piercing . | . . . . . . Sneak Attacks 3 | . . . . . 3 Combat Hostiles . | . . . . . . Follow-up Attacks . | . . . . . . Damage Inflicted 11897 | 286 850 542 4172 2475 3572 Guns 3968 | 286 614 339 2114 . 615 Cannons 3371 | . 218 203 1063 661 1226 Explosions 4070 | . . . 948 1814 1308 Melee 383 | . . . . . 383 Ramming 78 | . 18 . 30 . 30 Kinetic 5277 | 185 636 442 1887 204 1923 Thermal 4126 | 101 196 29 1903 661 1236 Explosive 1962 | . . . 352 1610 . Electromagnetic 71 | . . 71 . . . Impact 383 | . . . . . 383 Slashing . | . . . . . . Piercing . | . . . . . . Highest Corruption 11 | . . 4 7 11 11 Average Corruption 8 | . . 4 6 9 11 Corruption Purged . | . . . . . . Corruption Blocked . | . . . . . . Effects 200 | . . . 81 36 83 Message Errors 50 | . . . 21 9 20 Matter Fused 42 | . . . 13 12 17 Heat Flow Errors 16 | . . . 5 4 7 Energy Discharges 18 | . . . 9 2 7 Parts Fused 1 | . . . . . 1 Data Loss (minor) 33 | . . . 16 4 13 Data Loss (major) 17 | . . . 6 3 8 Misfires 12 | . . . 5 1 6 Alerts 4 | . . . 2 1 1 Misdirections 1 | . . . . . 1 Weapon Failures 6 | . . . 4 . 2 Overload Shots . | . . . . . . Overflow Damage 365 | . . . 14 118 233 Projectiles 78 | . . . 13 52 13 Explosions 77 | . . . 1 66 10 Melee 210 | . . . . . 210 Knockbacks 8 | . 3 3 1 . 1 Impact 2 | . . . 1 . 1 Kinetic 6 | . 3 3 . . . Secondary . | . . . . . . Self-Inflicted Damage 298 | . . . 104 154 40 Shots 12 | . . . 3 7 2 Rammed 15 | . 7 . 5 . 3 Targets Rammed 17 | . 8 . 6 . 3 Kicked . | . . . . . . Crushed 2 | . 1 . 1 . . Highest Temperature 248 | . 60 . 242 169 248 Average Temperature 50 | . 14 . 59 70 49 Received Heat Transfer 1959 | . 93 159 956 58 693 Siege Activations . | . . . . . . Robots Corrupted . | . . . . . . Combat Hostiles . | . . . . . . Parts Fried 9 | . . . . . 9 Impact Corruptions 8 | . . . . . 8 Robots Melted 1 | . . . . 1 . Combat Hostiles 1 | . . . . 1 . Parts Melted 11 | . 1 . 5 3 2 Heat Transferred 7243 | 225 450 37 3324 1110 2097 Parts Sabotaged . | . . . . . . Parts Stolen . | . . . . . . Parts Stripped . | . . . . . . Power Chain Reactions . | . . . . . . Alert | -11 -10 -10 -8 -8 -8 ------- Run | Yrd Mat Sub Mat Gar Mat Peak Influence 807 | 30 146 . 525 807 665 Initial 393 | . 19 . . 283 393 Average 326 | 17 52 . 234 622 506 Maximum Alert Level 3 | . . . 2 3 2 Low Security (%) 37 | 100 100 . 45 . . Level 1 21 | . . . 38 11 17 Level 2 36 | . . . 15 56 82 Level 3 4 | . . . . 31 . Level 4 . | . . . . . . Level 5 . | . . . . . . High Security . | . . . . . . Max Security . | . . . . . . Squads Dispatched 19 | . 1 . 11 . 7 Investigation 8 | . 1 . 6 . 1 Extermination . | . . . . . . Reinforcement 10 | . . . 5 . 5 Assault 1 | . . . . . 1 Garrison . | . . . . . . Intercept . | . . . . . . Searches Triggered . | . . . . . . Construction Impeded 2 | . . . . . 2 Haulers Reinforced . | . . . . . . Active Scanning Responses . | . . . . . . Cargo Convoy Interrupts . | . . . . . . Stealth | -11 -10 -10 -8 -8 -8 --------- Run | Yrd Mat Sub Mat Gar Mat Distress Signals 10 | . . . 6 . 4 Communications Jammed . | . . . . . . Distress Signals . | . . . . . . Times Spotted 162 | . 13 20 53 40 36 Peak Tracking Total 6 | . 3 6 5 5 5 Tactical Retreats 7 | . 1 2 . 1 3 Traps | -11 -10 -10 -8 -8 -8 ------- Run | Yrd Mat Sub Mat Gar Mat Traps Triggered 5 | . . 1 2 2 . Indirectly . | . . . . . . Trap Hack Attempts . | . . . . . . Triggered . | . . . . . . Disarmed . | . . . . . . Reprogrammed . | . . . . . . Reused . | . . . . . . Traps Extracted . | . . . . . . Installed . | . . . . . . Triggered . | . . . . . . Machines | -11 -10 -10 -8 -8 -8 ---------- Run | Yrd Mat Sub Mat Gar Mat Machines Disabled 15 | . . 1 9 3 2 Max in Single Turn 2 | . . 1 1 2 1 Phase Generator 1 | . . . . 1 . Machines Repaired . | . . . . . . Machines Dismantled . | . . . . . . Machines Sabotaged . | . . . . . . Overloaded Fab Kills . | . . . . . . Hacking | -11 -10 -10 -8 -8 -8 --------- Run | Yrd Mat Sub Mat Gar Mat Machines Accessed 31 | . 8 2 13 3 5 Terminals 21 | . 6 . 8 3 4 Fabricators . | . . . . . . Repair Stations 1 | . 1 . . . . Recycling Units 4 | . 1 . 2 . 1 Scanalyzers 2 | . . . 2 . . Garrison Access 1 | . . . 1 . . Total Hacks 100 | . 15 2 57 8 18 Successful 59 | . 9 2 39 2 7 Failed 41 | . 6 . 18 6 11 Catastrophic 5 | . 1 . 2 1 1 Database Lockouts . | . . . . . . Manual 36 | . 4 . 21 1 10 Terminals 65 | . 12 . 28 8 17 Fabricators . | . . . . . . Repair Stations 2 | . 2 . . . . Recycling Units 8 | . 1 . 6 . 1 Scanalyzers 21 | . . . 21 . . Garrison Access 2 | . . . 2 . . Terminal Hacks 26 | . 5 2 11 2 6 Record 1 | . . 1 . . . Prototype ID Bank 3 | . . . 2 . 1 Open Door 1 | . . . . 1 . Alert Level 3 | . . . 2 . 1 Unreport Threat 2 | . . . 2 . . Locate Traps 1 | . . . . . 1 Transport Status 1 | . 1 . . . . Hauler Manifests 3 | . 1 . 1 . 1 Zone Layout 9 | . 3 . 4 . 2 Patrol Navigation 1 | . . . . 1 . Derelict Proto ID Bank 1 | . . 1 . . . Fabricator Hacks . | . . . . . . Repair Station Hacks 2 | . 2 . . . . Scan Component 1 | . 1 . . . . Repair 1 | . 1 . . . . Recycling Unit Hacks 1 | . . . 1 . . Retrieve Components 1 | . . . 1 . . Scanalyzer 19 | . . . 19 . . Insert Component 9 | . . . 9 . . Analyze 10 | . . . 10 . . Garrison Access Hacks 1 | . . . 1 . . Unlock Access 1 | . . . 1 . . Unauthorized Hacks 10 | . 2 . 7 . 1 Terminals 5 | . 1 . 4 . . Assimilate 1 | . . . 1 . . Botnet 1 | . . . 1 . . Disrupt 1 | . . . 1 . . Operators 2 | . 1 . 1 . . Fabricators . | . . . . . . Repair Stations . | . . . . . . Recycling Units 4 | . 1 . 2 . 1 Tunnel 4 | . 1 . 2 . 1 Scanalyzers . | . . . . . . Garrison Access 1 | . . . 1 . . Reprogram 1 | . . . 1 . . Data Cores Recovered . | . . . . . . Used . | . . . . . . Hacking Detections 23 | . 5 . 11 3 4 Full Trace Events 2 | . 1 . 1 . . Feedback Events . | . . . . . . Feedback Blocked . | . . . . . . Robot Schematics Acquired . | . . . . . . Robots Built . | . . . . . . Authchips . | . . . . . . Time . | . . . . . . Total Robot Build Rating . | . . . . . . Part Schematics Acquired 8 | . . . 8 . . Parts Built . | . . . . . . Authchips . | . . . . . . Time . | . . . . . . Total Part Build Rating . | . . . . . . Parts Repaired 1 | . 1 . . . . Time 26 | . 26 . . . . Parts Recycled . | . . . . . . Recycled Matter . | . . . . . . Retrieved Matter . | . . . . . . Retrieved Components 10 | . . . 10 . . Parts Scanalyzed 9 | . . . 9 . . Part Schematics Acquired 8 | . . . 8 . . Parts Damaged . | . . . . . . Bothacking | -11 -10 -10 -8 -8 -8 ------------ Run | Yrd Mat Sub Mat Gar Mat Used RIF Installer . | . . . . . . Robots Hacked . | . . . . . . Non-combat . | . . . . . . Combat . | . . . . . . Robot Hacks Applied . | . . . . . . Relay Couplers Released . | . . . . . . Fabnet Peak Effective % . | . . . . . . Robots Rewired . | . . . . . . Allies Hacked . | . . . . . . Hacks Repelled . | . . . . . . Allies | -11 -10 -10 -8 -8 -8 -------- Run | Yrd Mat Sub Mat Gar Mat Total Allies 11 | . . 7 3 1 . Largest Group 4 | . . 4 4 2 . Highest-Rated Group 76 | . . 76 76 32 . Highest-Rated Ally 20 | . . 19 19 20 . Total Orders . | . . . . . . Ally Attacks 47 | . . 29 13 5 . Total Damage 773 | . . 513 208 52 . Kills 8 | . . 3 4 1 . Allies Corrupted . | . . . . . . Allies Melted . | . . . . . . Intel | -11 -10 -10 -8 -8 -8 ------- Run | Yrd Mat Sub Mat Gar Mat Robot Analysis Total . | . . . . . . Derelict Logs Recovered 1 | . . 1 . . . Drone Launches . | . . . . . . Drone Recoveries . | . . . . . . Exploration | -11 -10 -10 -8 -8 -8 ------------- Run | Yrd Mat Sub Mat Gar Mat Turns Passed 11360 | 207 1302 3951 2809 1035 2056 Spaces Moved 4745 | 88 649 2002 976 322 708 Core 5 | 5 . . . . . Treads 4740 | 83 649 2002 976 322 708 Legs . | . . . . . . Wheels . | . . . . . . Hover . | . . . . . . Flight . | . . . . . . Fastest Speed 50 | 50 160 160 155 225 160 Average Speed 191 | 153 160 183 216 231 196 Slowest Speed 250 | 160 160 250 250 236 240 Overloaded Moves . | . . . . . . Propulsion Burnouts . | . . . . . . Robots Hopped . | . . . . . . Cave-ins Triggered . | . . . . . . Exploration Rate (%) 59 | 4 86 91 74 51 49 Regions Visited 5 Branch Regions 1 Pre-discovered Areas 5 | . 1 1 2 . 1 Known Exits Taken 1 | . . . 1 . . Unknown Exits Taken 3 | 1 1 1 . . . Scrap Searched 15 | . . 15 . . . Spaces Dug 196 | . 8 4 7 139 38 Terrain Destroyed 622 | . 10 6 66 378 162 Melee 24 | . . . . 4 20 Projectile 64 | . 10 6 13 29 6 AOE 534 | . . . 53 345 136 Terrain Rammed . | . . . . . . Walls Destroyed . | . . . . . . Machines Disabled . | . . . . . . Actions | -11 -10 -10 -8 -8 -8 --------- Run | Yrd Mat Sub Mat Gar Mat Total 6178 | 119 792 2190 1409 473 1195 Wait 544 | . 47 59 137 17 284 Move 4740 | 87 648 2001 975 321 708 Hop . | . . . . . . Pick Up 102 | 4 14 26 39 2 17 Fast Attach 44 | 7 . 4 21 5 7 Attach 34 | . 1 5 12 4 12 Detach 14 | . . 4 3 2 5 Swap 90 | . 9 15 28 13 25 Drop 88 | . 9 18 34 3 24 Fire 473 | 21 56 58 153 100 85 Melee 29 | . . . . 4 25 Ram . | . . . . . . Kick . | . . . . . . Crush 17 | . 8 . 6 . 3 Escape Stasis 2 | . . . . 2 . Rewire . | . . . . . . Trap . | . . . . . . Miscellaneous 1 | . . . 1 . . Route ------- -11/Scrapyard -10/Materials (discovered 5 exits: [*Mat x3] / [*Min] / *Sub) -10/Subcaves (discovered 3 exits: *Mat x2 / [*Rec]) -8/Materials (discovered 3 exits: *Fac x2 / Gar) -8/Garrison -8/Materials (discovered 1 exit: *Fac) History --------- Turn | Location | Event 16 | -11/Scrapyard | Discovered new exit (range 15) 208 | -11/Scrapyard | Entered Materials 304 | -10/Materials | Build established: Mutant 745 | -10/Materials | Discovered new exit (range 11) 1054 | -10/Materials | Discovered new exit (range 5) 1245 | -10/Materials | Discovered new exit (range 5) 1364 | -10/Materials | Discovered new exit (range 9) 1418 | -10/Materials | Repaired Lgt. Treads 1502 | -10/Materials | Discovered new exit (range 3) 1510 | -10/Materials | Entered Subcaves 1533 | -10/Subcaves | Learned location of Zion (-7) 1533 | -10/Subcaves | Met a Zionite searching for "candidates" 1769 | -10/Subcaves | A swath of the cavern ceiling suddenly collapsed 1875 | -10/Subcaves | Shifting Twisted Machinery released Sub. Machine Gun 1877 | -10/Subcaves | Shifting Twisted Machinery released Shrapnel Trap 2265 | -10/Subcaves | Ambushed by Subdweller buried in earth 2376 | -10/Subcaves | Discovered new exit (range 16) 2387 | -10/Subcaves | Core integrity fell below 50% 2590 | -10/Subcaves | Visited triangular shrine 2600 | -10/Subcaves | Found Prototype Device 2601 | -10/Subcaves | Identified V3-11A's Pendant 2606 | -10/Subcaves | Befriended Subdweller 2691 | -10/Subcaves | Befriended Subdweller 2817 | -10/Subcaves | Ambushed by angry Subdweller bent on revenge 2821 | -10/Subcaves | Befriended Subdweller 2852 | -10/Subcaves | Shifting Twisted Machinery released Battle Rifle 2863 | -10/Subcaves | Shifting Twisted Machinery released Sub. Shrapnel Launcher 2887 | -10/Subcaves | Disturbed a concealed Subdweller 2891 | -10/Subcaves | Befriended Subdweller 3024 | -10/Subcaves | Disturbed a concealed Subdweller 3201 | -10/Subcaves | Visited Clippyterm 3276 | -10/Subcaves | Befriended Subdweller 3313 | -10/Subcaves | Lost 3 allies 3656 | -10/Subcaves | Befriended Subdweller 3661 | -10/Subcaves | Befriended Subdweller 3868 | -10/Subcaves | Learned location of 1 exit from Materials 4198 | -10/Subcaves | Shifting Twisted Machinery released Battle Rifle 4201 | -10/Subcaves | Shifting Twisted Machinery released Sub. Shrapnel Launcher 4210 | -10/Subcaves | Discovered new exit (range 6) 4363 | -10/Subcaves | Discovered new exit (range 7) 4870 | -10/Subcaves | Visited 4L-MR0's lab 4888 | -10/Subcaves | Found Meta Core 5461 | -10/Subcaves | Entered Materials 5461 | -8/Materials | Accompanied by 4 allies 5461 | -8/Materials | Evolved 4 slots: Propulsion x2, Utility x2 5462 | -8/Materials | Identified exit to Factory 5631 | -8/Materials | Lost 4 allies 6029 | -8/Materials | Build established: Scavenger-Mutant 6162 | -8/Materials | Lost 3 parts (1n2u) 6413 | -8/Materials | Build established: Mutant 7786 | -8/Materials | Discovered exit to Factory (range 5) 8031 | -8/Materials | Core integrity fell below 50% 8193 | -8/Materials | Identified exit to Garrison 8270 | -8/Materials | Entered Garrison 8270 | -8/Garrison | Accompanied by 2 allies 8344 | -8/Garrison | Phase Generator disabled 8393 | -8/Garrison | Assembled breached garrison interior 8553 | -8/Garrison | Rescued a captive Derelict 8880 | -8/Garrison | Destroyed 17 combat bots 8920 | -8/Garrison | System corruption reached 10% 9156 | -8/Garrison | Discovered new exit (range 8) 9177 | -8/Garrison | Build established: Scavenger-Mutant 9305 | -8/Garrison | Entered Materials 9677 | -8/Materials | Core integrity fell below 20% 10505 | -8/Materials | First assault squad dispatched 10682 | -8/Materials | Build established: Mutant 11357 | -8/Materials | Discovered exit to Factory (range 5) 11361 | -8/Materials | Destroyed by G-47 Trooper with Particle Gun Last Messages --------------- 11200_ Acquired 21 matter. 11212_ System corrupted: Substantial component data lost. 11219_ Acquired 19 matter. 11234_ System corrupted: Med. Treads fused. 11270_ L |G7YWEBOCRCEIV0 GKR:DMVJ QP|OZMKZC 11275_ ALERT: Suspicious intruders detected, dispatching Specialist reinforcements to area. 11280_ W-25 Informer sends out distress signal. 11294_ =IX4%RYIROAII NZBU%E|5DCVH 11314_ System corrupted: Energy discharge (-41). 11344_ Penetrated by Slug. 11348_ O-16 Technician: "IFF HANDSHAKE FAILED. SECURING TERMINAL." 11351_ System corrupted: Substantial component data lost. 11355_ ALERT: Hostiles spotted, dispatching reinforcements to Terminal M002. 11356_ Slug penetrates Wall. 11357_ EXIT=FOUND: FACTORY Map ----- +----------------------------------------------------+ | | | | | | | | | | | | | | | | | | | | | | | | | | | | | ?????????????????????????????????????????????????? | | ?????????????????????????????????????????????????? | | ?????????????????????????????????????????????????? | | ?????????????????????????????????????????????????? | | ?????????????????????????????????????????????????? | | ?????????????????????????????????????????????????? | | ?????????????????????????????????????????????????? | | ???????????????????????#####?????????????????????? | | ???????????????????????# gg#?????????????????????? | | ???????????????????????# < #?????????????????????? | | ???????????????????????#g #?????????????????????? | | ???????????????????????# @ +???o?????????????????? | | ?????????????########### #?????????????????????? | | ?????????????# [[ ; #?????????????????????? | | ?????????????# [[ # #?????????????????????? | | ?????????????# [ # #?????????????????????? | | ?????????????# # #?????????????????????? | | ?????????????# # #?????????????????????? | | ?????????????# = + +?????????????????????? | | ?????????????# # #?????????????????????? | | ?????????????# # #?????????????????????? | | ##??????????########/### #?????????????????????? | | #??????????# ## #?????????????????????? | | #??????????# ## k#?????????????????????? | | #??????????# #? #?????????????????????? | | #????###???# #?k #??????????#??????????? | | +######"#??## #? #?????????? +?????????? | | #####" #? ??????????? #?????????? | | " # #???????????#### ##????????? | | # # #???????#+### #????????? | | # #+###/#####???????? #????????? | | # #?? ??????H?????? ????????? | | # #?? ?????????????? ?????????? | | # + ? ???????????????# ?????????? | | = # #### ????????????????# #?????????? | | # #??# ????????????????# #?????????? | +----------------------------------------------------+ Best States ------------- Heat Dissipation 58 Energy Generation 14 Energy Capacity 275 Matter Stores 300 Matter Capacity 300 Sight Range 21 Robot Scan Range 15 Terrain Scan Density 10 Armor Coverage 950 Resistance: EM 15 Evasion (%) 40 Core Analysis 6 Recoil Reduction 4 Authchip Count 2 Item Schematics ----------------- Multitool | -8/Materials | Scanalyzed Hcp. Storage Unit | -8/Materials | Scanalyzed Imp. Flight Unit | -8/Materials | Scanalyzed Hrd. Heavy Armor Plating | -8/Materials | Scanalyzed Lrg. Storage Unit | -8/Materials | Scanalyzed Arm. Wheel | -8/Materials | Scanalyzed Hacking Suite | -8/Materials | Scanalyzed Sub. Shrapnel Launcher | -8/Materials | Scanalyzed Robot Schematics ------------------ None Fabricated ------------ Nothing Alien Tech Used ----------------- None Achievements -------------- None Challenges ------------ None Game ------ Seed TransdimensionalCobblerBox Manual? 0 Play Time 01:50:20 Cumulative 517.8 hours Start 2024.06.05 @ 23:39:33 End 2024.06.08 @ 22:12:22 Sessions 8 Manual Loads 0 Difficulty Rogue Special Mode None Game No. 183 Rogue 183 Adventurer 0 Explorer 0 Win Type - Total 24 Types 8/1/5/3/1/0/5/1/0 Lore% 91 Gallery% 94 Achievement% 84 Wizard Run 0 Options --------- Layout 2 ASCII 0 Keyboard 1 Movement Arrows Keybinds 0 Fullscreen 2 Font 24/Smallcaps Map View 50x44 Zoom Use 0% Tactical HUD 1 Map Filters NONE Filters NONE Steam 1 RUN: ba2e4c78-6430-4510-95c7-956f201c568d